fUSD/lending_fUSD_20250814
["ID","MTS","AMOUNT","RATE_DAILY","PERIOD"]
[379124371,1755151922648,-500.0,0.00054794,120]
[379124372,1755151922658,-500.0,0.00054794,120]
[379124373,1755151922668,-1470.96,0.00054794,120]
[379124374,1755151922678,-500.0,0.00054794,120]
[379124375,1755151922688,-2626.76,0.00054794,120]
[379124376,1755151922698,-12872.66,0.00054794,120]
[379124377,1755151922708,-400.0,0.00054794,120]
[379124378,1755151922718,-500.0,0.00054794,120]
[379124379,1755151922728,-373.78297296,0.00054794,120]
[379124380,1755151922738,-400.0,0.00054794,120]
[379124381,1755151922748,-842.29,0.00054794,120]
[379124382,1755151922758,-400.0,0.00054794,120]
[379124383,1755151922768,-400.0,0.00054794,120]
[379124384,1755151922779,-2484.23,0.00054794,120]
[379124385,1755151922789,-400.0,0.00054794,120]
[379124386,1755151922801,-677.46,0.00054794,120]
[379124387,1755151922811,-400.0,0.00054794,30]
[379124388,1755151922821,-400.0,0.00054794,120]
[379124389,1755151922831,-2137.56,0.00054794,120]
[379124390,1755151922842,-700.66,0.00054794,120]
[379124391,1755151922852,-716.28,0.00054794,120]
[379124392,1755151922862,-2993.9,0.00054794,120]
[379124393,1755151922872,-6351.49,0.00054794,120]
[379124394,1755151922884,-3596.26,0.00054794,120]
[379124395,1755151922894,-2925.64,0.00054794,120]
[379124396,1755151922904,-1168.62,0.00054794,120]
[379124397,1755151922914,-400.0,0.00054794,120]
[379124398,1755151922924,-400.0,0.00054794,120]
[379124399,1755151922934,-3939.6,0.00054794,120]
[379124400,1755151922949,-400.0,0.00054794,120]
[379124401,1755151922959,-3937.39,0.00054794,120]
[379124402,1755151922969,-1061.38,0.00054794,120]
[379124403,1755151922980,-234.77945611,0.00054794,120]
[379124404,1755151922990,-3506.43,0.00054794,120]
[379124405,1755151923000,-2712.52,0.00054794,120]
[379124406,1755151923011,-470.17,0.00054794,120]
[379124407,1755151923022,-711.43,0.00054794,120]
[379124408,1755151923032,-14736.38,0.00054794,120]
[379124409,1755151923043,-400.0,0.00054794,120]
[379124410,1755151923065,-4800.16,0.00054794,120]
[379124411,1755151923077,-168.63087649,0.00054794,120]
[379124412,1755151923088,-8367.96,0.00054794,120]
[379124413,1755151923099,-921.63,0.00054794,120]
[379124414,1755151923111,-2077.74,0.00054794,120]
[379124415,1755151923122,-3443.78,0.00054794,120]
[379124416,1755151923136,-400.0,0.00054794,10]
[379124417,1755151923148,-865.51,0.00054794,120]
[379124418,1755151923159,-2942.23,0.00054794,120]
[379124419,1755151923170,-1334.83,0.00054794,120]
[379124420,1755151923182,-1049.02,0.00054794,120]
[379124421,1755151923193,-152.59608441,0.00054794,120]
[379124422,1755151923203,-607.39,0.00054794,120]
[379124423,1755151923214,-695.1,0.00054794,120]
[379124424,1755151923225,-8231.79,0.00054794,120]
[379124425,1755151923236,-400.0,0.00054794,120]
[379124426,1755151923246,-2532.79,0.00054794,120]
[379124427,1755151923257,-2723.98,0.00054794,120]
[379124428,1755151923268,-400.0,0.00054794,120]
[379124429,1755151923278,-744.6,0.00054794,120]
[379124430,1755151923290,-4409.46,0.00054794,120]
[379124431,1755151923302,-3418.49,0.00054794,120]
[379124432,1755151923313,-4037.29,0.00054794,120]
[379124433,1755151923324,-4195.01,0.00054794,120]
[379124434,1755151923334,-400.0,0.00054794,120]
[379124435,1755151923345,-400.0,0.00054794,120]
[379124436,1755151923355,-400.0,0.00054794,120]
[379124437,1755151923366,-4900.95,0.00054794,120]
[379124438,1755151923378,-545.91,0.00054794,120]
[379124439,1755151923389,-2283.95,0.00054794,120]
[379124440,1755151923399,-400.0,0.00054794,120]
[379124441,1755151923410,-400.0,0.00054794,120]
[379124442,1755151923421,-1999.15,0.00054794,120]
[379124443,1755151923432,-3909.03,0.00054794,120]
[379124444,1755151923443,-1532.89,0.00054794,120]
[379124445,1755151923454,-409.06,0.00054794,120]
[379124446,1755151923465,-400.0,0.00054794,120]
[379124447,1755151923477,-400.0,0.00054794,120]
[379124448,1755151923493,-400.0,0.00054794,120]
[379124449,1755151923505,-1318.43,0.00054794,120]
[379124450,1755151923517,-6094.57,0.00054794,120]
[379124451,1755151923529,-5253.86,0.00054794,120]
[379124452,1755151923540,-1418.89,0.00054794,120]
[379124453,1755151923551,-400.0,0.00054794,120]
[379124454,1755151923563,-20377.53,0.00054794,120]
[379124455,1755151923575,-536.35,0.00054794,120]
[379124456,1755151923587,-7791.38,0.00054794,120]
[379124457,1755151923598,-777.28,0.00054794,120]
[379124458,1755151923610,-400.0,0.00054794,120]
[379124459,1755151923622,-4524.24,0.00054794,120]
[379124460,1755151923635,-803.08,0.00054794,120]
[379124461,1755151923647,-400.0,0.00054794,120]
[379124462,1755151923658,-400.0,0.00054794,120]
[379124463,1755151923670,-400.0,0.00054794,120]
[379124464,1755151923682,-400.0,0.00054794,120]
[379124465,1755151923693,-400.0,0.00054794,120]
[379124466,1755151923705,-636.7,0.00054794,120]
[379124467,1755151923717,-7543.93,0.00054794,120]
[379124468,1755151923729,-6559.14,0.00054794,120]
[379124469,1755151923741,-400.0,0.00054794,120]
[379124470,1755151923753,-3309.87,0.00054794,120]
[379124471,1755151923764,-400.0,0.00054794,120]
[379124472,1755151923776,-1839.95,0.00054794,120]
[379124473,1755151923788,-3366.95,0.00054794,120]
[379124474,1755151923800,-5994.36,0.00054794,120]
[379124475,1755151923812,-2152.61,0.00054794,120]
[379124476,1755151923823,-400.0,0.00054794,120]
[379124477,1755151923834,-1919.24,0.00054794,120]
[379124478,1755151923846,-617.55,0.00054794,120]
[379124479,1755151923857,-400.0,0.00054794,120]
[379124480,1755151923869,-1316.43,0.00054794,120]
[379124481,1755151923880,-2128.5,0.00054794,120]
[379124482,1755151923891,-400.0,0.00054794,120]
[379124483,1755151923903,-2371.16,0.00054794,120]
[379124484,1755151923914,-400.0,0.00054794,120]
[379124485,1755151923926,-3587.82,0.00054794,120]
[379124486,1755151923945,-1425.03,0.00054794,120]
[379124487,1755151923957,-7358.71,0.00054794,120]
[379124488,1755151923969,-1968.63,0.00054794,120]
[379124489,1755151923982,-6345.68,0.00054794,120]
[379124490,1755151923994,-1175.19,0.00054794,120]
[379124491,1755151924486,-400.0,0.00054794,120]
[379124492,1755151924498,-3111.21,0.00054794,120]
[379124493,1755151924508,-400.0,0.00054794,120]
[379124494,1755151924518,-646.46,0.00054794,120]
[379124495,1755151924528,-693.3,0.00054794,120]
[379124496,1755151924538,-401.44,0.00054794,120]
[379124497,1755151924548,-400.0,0.00054794,120]
[379124498,1755151924558,-2377.46,0.00054794,120]
[379124499,1755151924568,-940.0,0.00054794,120]
[379124500,1755151924578,-400.0,0.00054794,120]
[379124501,1755151924588,-400.0,0.00054794,120]
[379124502,1755151924598,-517.35,0.00054794,120]
[379124503,1755151924608,-5602.35,0.00054794,120]
[379124504,1755151924618,-624.92,0.00054794,120]
[379124505,1755151924628,-402.97088061,0.00054794,120]
[379124506,1755151924639,-3950.72,0.00054794,120]
[379124507,1755151924649,-4573.77,0.00054794,120]
[379124508,1755151924659,-400.0,0.00054794,120]
[379124509,1755151924671,-400.0,0.00054794,120]
[379124510,1755151924682,-400.0,0.00054794,120]
[379124511,1755151924692,-652.5,0.00054794,120]
[379124512,1755151924701,-400.0,0.00054794,120]
[379124513,1755151924711,-400.0,0.00054794,120]
[379124514,1755151924721,-2054.25,0.00054794,120]
[379124515,1755151924733,-400.0,0.00054794,120]
[379124516,1755151924743,-400.0,0.00054794,120]
[379124517,1755151924753,-583.61,0.00054794,120]
[379124518,1755151924767,-5329.6,0.00054794,120]
[379124519,1755151924777,-11929.2,0.00054794,120]
[379124520,1755151924787,-400.0,0.00054794,120]
[379124521,1755151924797,-400.0,0.00054794,120]
[379124522,1755151924807,-448.76,0.00054794,120]
[379124523,1755151924816,-400.0,0.00054794,120]
[379124524,1755151924827,-400.0,0.00054794,120]
[379124525,1755151924836,-3617.89,0.00054794,120]
[379124526,1755151924846,-5074.18,0.00054794,120]
[379124527,1755151924856,-1615.63,0.00054794,120]
[379124528,1755151924866,-400.0,0.00054794,120]
[379124529,1755151924876,-400.0,0.00054794,120]
[379124530,1755151924887,-769.03,0.00054794,120]
[379124531,1755151924896,-7493.39,0.00054794,120]
[379124532,1755151924906,-400.0,0.00054794,120]
[379124533,1755151924917,-400.0,0.00054794,120]
[379124534,1755151924926,-737.42,0.00054794,120]
[379124535,1755151924936,-1368.28,0.00054794,2]
[379124536,1755151924949,-1368.28,0.00054794,2]
[379124537,1755151924959,-1368.28,0.00054794,2]
[379124538,1755151924969,-1368.28,0.00054794,2]
[379124539,1755151924978,-1368.28,0.00054794,2]
[379124540,1755151924989,-1368.28,0.00054794,2]
[379124541,1755151924999,-1368.28,0.00054794,2]
[379124542,1755151925008,-1368.28,0.00054794,2]
[379124543,1755151925019,-1368.28,0.00054794,2]
[379124544,1755151925028,-400.0,0.00054794,120]
[379124545,1755151925038,-400.0,0.00054794,120]
[379124546,1755151925047,-1368.28,0.00054794,2]
[379124547,1755151925066,-4803.32,0.00054794,120]
[379124548,1755151925078,-1368.28,0.00054794,2]
[379124549,1755151925089,-1368.28,0.00054794,2]
[379124550,1755151925099,-1368.28,0.00054794,2]
[379124551,1755151925109,-1368.28,0.00054794,2]
[379124552,1755151925120,-471.48,0.00054794,120]
[379124553,1755151925130,-1368.28,0.00054794,2]
[379124554,1755151925141,-1368.28,0.00054794,2]
[379124555,1755151925151,-400.0,0.00054794,120]
[379124556,1755151925161,-1368.28,0.00054794,2]
[379124557,1755151925171,-1368.28,0.00054794,2]
[379124558,1755151925181,-400.0,0.00054794,120]
[379124559,1755151925192,-1368.28,0.00054794,2]
[379124560,1755151925202,-400.0,0.00054794,120]
[379124561,1755151925212,-533.6,0.00054794,120]
[379124562,1755151925222,-1368.28,0.00054794,2]
[379124563,1755151925232,-400.0,0.00054794,120]
[379124564,1755151925243,-1368.28,0.00054794,2]
[379124565,1755151925253,-1368.28,0.00054794,2]
[379124566,1755151925264,-1368.28,0.00054794,2]
[379124567,1755151925275,-400.0,0.00054794,120]
[379124568,1755151925285,-1368.4836933,0.00054794,2]
[379124569,1755151925296,-9562.11,0.00054794,120]
[379124570,1755151925306,-400.0,0.00054794,120]
[379124571,1755151925317,-630.94,0.00054794,120]
[379124572,1755151925327,-810.43,0.00054794,120]
[379124573,1755151925337,-400.0,0.00054794,120]
[379124574,1755151925348,-412.76,0.00054794,120]
[379124575,1755151925358,-400.0,0.00054794,120]
[379124576,1755151925368,-3424.61,0.00054794,120]
[379124577,1755151925378,-3374.23,0.00054794,120]
[379124578,1755151925388,-6827.99,0.00054794,120]
[379124579,1755151925398,-1022.07,0.00054794,120]
[379124580,1755151925409,-401.89738112,0.00054794,30]
[379124581,1755151925419,-400.0,0.00054794,120]
[379124582,1755151925429,-5238.96,0.00054794,120]
[379124583,1755151925439,-1263.51,0.00054794,120]
[379124584,1755151925449,-400.0,0.00054794,120]
[379124585,1755151925460,-3712.76,0.00054794,120]
[379124586,1755151925471,-5099.85,0.00054794,120]
[379124587,1755151925482,-1023.63,0.00054794,120]
[379124588,1755151925492,-12607.61,0.00054794,14]
[379124589,1755151925503,-1023.63,0.00054794,120]
[379124590,1755151925517,-5026.42,0.00054794,120]
[379124591,1755151925528,-400.0,0.00054794,120]
[379124592,1755151925540,-1023.63,0.00054794,120]
[379124593,1755151925551,-452.63,0.00054794,120]
[379124594,1755151925562,-400.0,0.00054794,120]
[379124595,1755151925574,-5026.42,0.00054794,120]
[379124596,1755151925585,-1023.63,0.00054794,120]
[379124597,1755151925596,-5026.42,0.00054794,120]
[379124598,1755151925607,-1023.63,0.00054794,120]
[379124599,1755151925618,-9461.59,0.00054794,120]
[379124600,1755151925630,-5026.42,0.00054794,120]
[379124601,1755151925641,-1023.63,0.00054794,120]
[379124602,1755151925651,-5026.42,0.00054794,120]
[379124603,1755151925662,-1023.63,0.00054794,120]
[379124604,1755151925673,-5026.42,0.00054794,120]
[379124605,1755151925684,-1023.63,0.00054794,120]
[379124606,1755151925694,-5026.42,0.00054794,120]
[379124607,1755151925705,-1280.0,0.00054794,120]
[379124608,1755151925716,-1023.63,0.00054794,120]
[379124609,1755151925726,-5026.42,0.00054794,120]
[379124610,1755151925736,-400.0,0.00054794,120]
[379124611,1755151925747,-1023.63,0.00054794,120]
[379124612,1755151925757,-3336.58,0.00054794,120]
[379124613,1755151925767,-5026.42,0.00054794,120]
[379124614,1755151925778,-1023.63,0.00054794,120]
[379124615,1755151925788,-5026.42,0.00054794,120]
[379124616,1755151925798,-5026.42,0.00054794,120]
[379124617,1755151925808,-1440.53,0.00054794,120]
[379124618,1755151925818,-5026.42,0.00054794,120]
[379124619,1755151925828,-1023.63,0.00054794,120]
[379124620,1755151925838,-3572.12,0.00054794,120]
[379124621,1755151925849,-5026.42,0.00054794,120]
[379124622,1755151925859,-1023.63,0.00054794,120]
[379124623,1755151925870,-1037.13,0.00054794,120]
[379124624,1755151925881,-5026.42,0.00054794,120]
[379124625,1755151925891,-400.0,0.00054794,120]
[379124626,1755151925902,-1023.63,0.00054794,120]
[379124627,1755151925912,-5026.42,0.00054794,120]
[379124628,1755151925922,-400.0,0.00054794,120]
[379124629,1755151925933,-1023.63,0.00054794,120]
[379124630,1755151925946,-400.0,0.00054794,120]
[379124631,1755151925956,-5026.42,0.00054794,120]
[379124632,1755151925971,-1023.63,0.00054794,120]
[379124633,1755151925981,-5026.42,0.00054794,120]
[379124634,1755151925993,-1023.63,0.00054794,120]
[379124635,1755151926003,-5026.42,0.00054794,120]
[379124636,1755151926014,-400.0,0.00054794,120]
[379124637,1755151926024,-1023.63,0.00054794,120]
[379124638,1755151926034,-5026.42,0.00054794,120]
[379124639,1755151926045,-5026.42,0.00054794,120]
[379124640,1755151926056,-1023.63,0.00054794,120]
[379124641,1755151926066,-2387.29,0.00054794,120]
[379124642,1755151926078,-5026.42,0.00054794,120]
[379124643,1755151926088,-1023.63,0.00054794,120]
[379124644,1755151926099,-1023.63,0.00054794,120]
[379124645,1755151926109,-5026.42,0.00054794,120]
[379124646,1755151926119,-5026.42,0.00054794,120]
[379124647,1755151926133,-1023.63,0.00054794,120]
[379124648,1755151926143,-645.37,0.00054794,120]
[379124649,1755151926154,-400.0,0.00054794,120]
[379124650,1755151926164,-5026.65523306,0.00054794,120]
[379124651,1755151926175,-1023.63,0.00054794,120]
[379124652,1755151926185,-1023.71410709,0.00054794,120]
[379124653,1755151926196,-3470.66,0.00054794,120]
[379124654,1755151926206,-2302.92,0.00054794,120]
[379124655,1755151926216,-13098.21,0.00054794,120]
[379124656,1755151926226,-400.0,0.00054794,120]
[379124657,1755151926236,-2443.69,0.00054794,120]
[379124658,1755151926246,-6861.07,0.00054794,120]
[379124659,1755151926257,-400.0,0.00054794,120]
[379124660,1755151926267,-400.0,0.00054794,120]
[379124661,1755151926277,-3620.51,0.00054794,120]
[379124662,1755151926286,-775.24,0.00054794,120]
[379124663,1755151926296,-400.0,0.00054794,120]
[379124664,1755151926305,-2042.69,0.00054794,120]
[379124665,1755151926315,-697.92,0.00054794,120]
[379124666,1755151926325,-400.0,0.00054794,120]
[379124667,1755151926335,-392.43572267,0.00054794,120]
[379124668,1755151926345,-400.0,0.00054794,120]
[379124669,1755151926355,-400.0,0.00054794,120]
[379124670,1755151926365,-1558.59,0.00054794,120]
[379124671,1755151926376,-4330.88,0.00054794,120]
[379124672,1755151926388,-203.9324279,0.00054794,2]
[379124673,1755151926398,-1879.63,0.00054794,120]
[379124674,1755151926408,-10954.8,0.00054794,120]
[379124675,1755151926418,-400.0,0.00054794,2]
[379124676,1755151926431,-400.0,0.00054794,120]
[379124677,1755151926441,-10795.64,0.00054794,120]
[379124678,1755151926451,-542.57,0.00054794,120]
[379124679,1755151926461,-5005.36,0.00054794,120]
[379124680,1755151926471,-1441.73,0.00054794,120]
[379124681,1755151926480,-634.31,0.00054794,120]
[379124682,1755151926490,-400.0,0.00054794,120]
[379124683,1755151926502,-400.0,0.00054794,120]
[379124684,1755151926514,-400.0,0.00054794,120]
[379124685,1755151926524,-8104.07,0.00054794,120]
[379124686,1755151926533,-400.0,0.00054794,120]
[379124687,1755151926543,-400.0,0.00054794,120]
[379124688,1755151926553,-609.96,0.00054794,120]
[379124689,1755151926562,-831.88,0.00054794,120]
[379124690,1755151926572,-2164.47,0.00054794,120]
[379124691,1755151926582,-400.0,0.00054794,120]
[379124692,1755151926592,-673.2,0.00054794,2]
[379124693,1755151926601,-526.11,0.00054794,120]
[379124694,1755151926611,-400.0,0.00054794,120]
[379124695,1755151926620,-400.0,0.00054794,120]
[379124696,1755151926630,-5199.58,0.00054794,120]
[379124697,1755151926640,-400.0,0.00054794,120]
[379124698,1755151926650,-400.0,0.00054794,120]
[379124699,1755151926659,-2958.7,0.00054794,120]
[379124700,1755151926669,-2523.17,0.00054794,120]
[379124701,1755151926679,-8388.56,0.00054794,120]
[379124702,1755151926688,-500.0,0.00054794,120]
[379124703,1755151926698,-500.0,0.00054794,120]
[379124704,1755151926710,-400.0,0.00054794,120]
[379124705,1755151926720,-400.0,0.00054794,120]
[379124706,1755151926731,-400.0,0.00054794,120]
[379124707,1755151926741,-400.0,0.00054794,120]
[379124708,1755151926750,-400.0,0.00054794,120]
[379124709,1755151926760,-400.0,0.00054794,120]
[379124710,1755151926770,-400.0,0.00054794,120]
[379124711,1755151926779,-400.0,0.00054794,120]
[379124712,1755151926789,-1000.0,0.00054794,120]
[379124713,1755151926798,-400.0,0.00054794,120]
[379124714,1755151926808,-4563.48,0.00054794,120]
[379124715,1755151926818,-400.0,0.00054794,120]
[379124716,1755151926828,-400.0,0.00054794,120]
[379124717,1755151926838,-516.51,0.00054795,120]
[379124718,1755151926847,-156.41,0.00054795,2]
[379124719,1755151926857,-13132.35,0.000548,60]
[379124720,1755151926866,-247.33,0.00054853,120]
[379124721,1755151926875,-3001.03,0.00054863,120]
[379124722,1755151926886,-3001.03,0.00054863,120]
[379124723,1755151926896,-736.0,0.0005487,2]
[379124724,1755151926906,-30000.0,0.0005488,120]
[379124725,1755151926915,-26408.6743612,0.000549,120]
[379124726,1755151926925,-2315.34302463,0.000549,120]
[379124727,1755151927190,-199.0,0.00054931,49]
[379124728,1755151927201,-80431.99064808,0.0005495,120]
[379124729,1755151927211,-150.0,0.0005497,120]
[379124730,1755151927221,-1000.0,0.00055,120]
[379124731,1755151927231,-1000.0,0.00055,120]
[379124732,1755151927240,-2215.88781621,0.00055,120]
[379124733,1755151927250,-83590.0,0.00055,15]
[379124734,1755151927259,-525.0,0.00055,120]
[379124735,1755151927269,-500000.0,0.00055,120]
[379124736,1755151927278,-500000.0,0.00055,120]
[379124737,1755151927289,-500000.0,0.00055,120]
[379124738,1755151927299,-2028.42416514,0.00055,120]
[379124739,1755151927308,-1748.0,0.00055,120]
[379124740,1755151927317,-100000.0,0.00055,7]
[379124741,1755151927327,-2575.327036,0.00055,120]
[379124742,1755151927336,-2000.0,0.00055,90]
[379124743,1755151927345,-268.260069,0.00055,100]
[379124744,1755151927355,-171.0,0.00055,120]
[379124745,1755151927364,-1000000.0,0.00055,120]
[379124746,1755151927373,-3001.03,0.00055137,120]
[379124747,1755151927383,-3001.03,0.00055137,120]
[379124748,1755151927392,-400.0,0.0005525,120]
[379124749,1755151927402,-150.0,0.00055275,120]
[379124750,1755151927411,-3001.03,0.00055411,120]
[379124751,1755151927420,-3001.03,0.00055411,120]
[379124752,1755151927430,-2000.0,0.000555,120]
[379124753,1755151927439,-2500.0,0.00055516,2]
[379124754,1755151927449,-1288.51,0.00055616,120]
[379124755,1755151927458,-3935.8,0.00055616,120]
[379124756,1755151927468,-993.07,0.00055616,120]
[379124757,1755151927478,-400.0,0.00055616,120]
[379124758,1755151927488,-400.0,0.00055616,120]
[379124759,1755151927498,-400.0,0.00055616,120]
[379124760,1755151927507,-400.0,0.00055616,120]
[379124761,1755151927516,-400.0,0.00055616,120]
[379124762,1755151927526,-400.0,0.00055616,120]
[379124763,1755151927536,-400.0,0.00055616,120]
[379124764,1755151927546,-400.0,0.00055616,120]
[379124765,1755151927555,-400.0,0.00055616,120]
[379124766,1755151927565,-400.0,0.00055616,120]
[379124767,1755151927574,-400.0,0.00055616,120]
[379124768,1755151927584,-400.0,0.00055616,120]
[379124769,1755151927593,-400.0,0.00055616,120]
[379124770,1755151927602,-400.0,0.00055616,120]
[379124771,1755151927611,-400.0,0.00055616,120]
[379124772,1755151927621,-400.0,0.00055616,120]
[379124773,1755151927630,-400.0,0.00055616,120]
[379124774,1755151927639,-400.0,0.00055616,120]
[379124775,1755151927649,-400.0,0.00055616,120]
[379124776,1755151927658,-400.0,0.00055616,120]
[379124777,1755151927668,-400.0,0.00055616,120]
[379124778,1755151927677,-400.0,0.00055616,120]
[379124779,1755151927686,-439.33444778,0.00055616,120]
[379124780,1755151927695,-400.0,0.00055616,120]
[379124781,1755151927705,-400.0,0.00055616,120]
[379124782,1755151927714,-400.0,0.00055616,120]
[379124783,1755151927723,-400.0,0.00055616,120]
[379124784,1755151927732,-400.0,0.00055616,120]
[379124785,1755151927739,-1599.04,0.00055616,120]
[379124786,1755151927747,-400.0,0.00055616,120]
[379124787,1755151927755,-400.0,0.00055616,120]
[379124788,1755151927764,-400.0,0.00055616,120]
[379124789,1755151927775,-400.0,0.00055616,120]
[379124790,1755151927786,-400.0,0.00055616,120]
[379124791,1755151927796,-400.0,0.00055616,120]
[379124792,1755151927805,-400.0,0.00055616,120]
[379124793,1755151927815,-400.0,0.00055616,120]
[379124794,1755151927825,-400.0,0.00055616,120]
[379124795,1755151927835,-400.0,0.00055616,120]
[379124796,1755151927845,-400.0,0.00055616,120]
[379124797,1755151927854,-400.0,0.00055616,120]
[379124798,1755151927864,-400.89,0.00055616,120]
[379124799,1755151927873,-528.29628939,0.00055616,120]
[379124800,1755151927884,-500.0,0.00055616,2]
[379124801,1755151927894,-400.0,0.00055616,120]
[379124802,1755151927904,-400.0,0.00055616,120]
[379124803,1755151927914,-400.0,0.00055616,120]
[379124804,1755151927924,-1306.08,0.00055616,120]
[379124805,1755151927934,-400.0,0.00055616,120]
[379124806,1755151927945,-400.0,0.00055616,120]
[379124807,1755151927953,-1708.88,0.00055616,120]
[379124808,1755151927962,-400.0,0.00055616,120]
[379124809,1755151927970,-400.0,0.00055616,120]
[379124810,1755151927979,-400.0,0.00055616,120]
[379124811,1755151927988,-400.0,0.00055616,120]
[379124812,1755151927998,-400.0,0.00055616,120]
[379124813,1755151928007,-400.0,0.00055616,120]
[379124814,1755151928019,-1894.75,0.00055616,120]
[379124815,1755151928028,-3248.67,0.00055616,120]
[379124816,1755151928037,-400.0,0.00055616,120]
[379124817,1755151928047,-854.770045,0.00055616,120]
[379124818,1755151928057,-400.0,0.00055616,120]
[379124819,1755151928066,-510.95,0.00055616,120]
[379124820,1755151928077,-684.44,0.00055616,120]
[379124821,1755151928086,-400.0,0.00055616,120]
[379124822,1755151928096,-400.0,0.00055616,2]
[379124823,1755151928105,-710.57,0.00055616,120]
[379124824,1755151928115,-1049.79,0.00055616,120]
[379124825,1755151928123,-400.0,0.00055616,120]
[379124826,1755151928133,-491.67636583,0.00055616,120]
[379124827,1755151928141,-400.0,0.00055616,120]
[379124828,1755151928151,-1320.49,0.00055616,30]
[379124829,1755151928159,-400.0,0.00055616,120]
[379124830,1755151928168,-400.0,0.00055616,2]
[379124831,1755151928176,-941.38,0.00055616,120]
[379124832,1755151928185,-400.0,0.00055616,120]
[379124833,1755151928194,-400.0,0.00055616,120]
[379124834,1755151928204,-831.0,0.00055616,120]
[379124835,1755151928213,-654.424317,0.00055616,120]
[379124836,1755151928224,-412.41,0.00055616,120]
[379124837,1755151928234,-510.65,0.00055616,120]
[379124838,1755151928243,-400.0,0.00055616,120]
[379124839,1755151928256,-1013.506298,0.00055616,120]
[379124840,1755151928266,-400.0,0.00055616,120]
[379124841,1755151928275,-923.09,0.00055616,120]
[379124842,1755151928285,-400.0,0.00055616,120]
[379124843,1755151928295,-763.46,0.00055616,120]
[379124844,1755151928304,-276.531266,0.00055616,120]
[379124845,1755151928313,-400.0,0.00055616,120]
[379124846,1755151928324,-1059.25,0.00055616,120]
[379124847,1755151928333,-2247.15,0.00055616,120]
[379124848,1755151928342,-400.0,0.00055616,120]
[379124849,1755151928351,-400.0,0.00055616,120]
[379124850,1755151928361,-757.93,0.00055616,120]
[379124851,1755151928370,-495.55,0.00055616,120]
[379124852,1755151928381,-1166.88,0.00055616,120]
[379124853,1755151928390,-400.0,0.00055616,120]
[379124854,1755151928400,-400.0,0.00055616,120]
[379124855,1755151928410,-1435.74,0.00055616,120]
[379124856,1755151928419,-3108.2,0.00055616,120]
[379124857,1755151928429,-400.0,0.00055616,120]
[379124858,1755151928439,-2535.34,0.00055616,120]
[379124859,1755151928448,-400.0,0.00055616,120]
[379124860,1755151928457,-1075.79,0.00055616,120]
[379124861,1755151928466,-400.0,0.00055616,120]
[379124862,1755151928475,-2361.73,0.00055616,120]
[379124863,1755151928485,-491.31,0.00055616,120]
[379124864,1755151928494,-400.0,0.00055616,120]
[379124865,1755151928503,-423.58,0.00055616,120]
[379124866,1755151928512,-500.0,0.00055616,10]
[379124867,1755151928522,-849.81,0.00055616,120]
[379124868,1755151928532,-400.0,0.00055616,120]
[379124869,1755151928542,-400.0,0.00055616,120]
[379124870,1755151928551,-764.83,0.00055616,120]